[Event "Early-Titled-Tuesday-Blitz-February-20-2024"]
[Site "Chess.com"]
[Date "2024.02.20"]
[Round "2"]
[White "Supergiuly"]
[Black "Dinamo3"]
[Result "1-0"]
[WhiteElo "2332"]
[BlackElo "2516"]
[TimeControl "180+1"]
[EndTime "8:19:02 PST"]
[Termination "Supergiuly won by checkmate"]

1. e4 {[%clk 0:02:59.5]} 1... c5 {[%clk 0:02:58.4]} 2. Nf3 {[%clk 0:02:50.7]}
2... Nc6 {[%clk 0:02:50.1]} 3. a3 {[%clk 0:02:47.8]} 3... g6 {[%clk 0:02:48.8]}
4. c3 {[%clk 0:02:45.2]} 4... Nf6 {[%clk 0:02:34.7]} 5. Qc2 {[%clk 0:02:44.1]}
5... Bg7 {[%clk 0:02:33.4]} 6. d4 {[%clk 0:02:43.4]} 6... cxd4 {[%clk
0:02:32.4]} 7. cxd4 {[%clk 0:02:43.6]} 7... d5 {[%clk 0:02:32.8]} 8. e5 {[%clk
0:02:42.9]} 8... Ne4 {[%clk 0:02:32.1]} 9. Bb5 {[%clk 0:02:40.8]} 9... O-O
{[%clk 0:02:24.8]} 10. O-O {[%clk 0:02:29.1]} 10... Bg4 {[%clk 0:02:20.7]} 11.
Bxc6 {[%clk 0:02:11]} 11... Rc8 {[%clk 0:02:05.5]} 12. h3 {[%clk 0:02:04.3]}
12... Rxc6 {[%clk 0:02:04]} 13. Qe2 {[%clk 0:02:03.2]} 13... Bd7 {[%clk
0:01:50.7]} 14. Nbd2 {[%clk 0:01:59.5]} 14... Nxd2 {[%clk 0:01:48.9]} 15. Bxd2
{[%clk 0:01:57]} 15... Qb6 {[%clk 0:01:44.8]} 16. b4 {[%clk 0:01:53.7]} 16...
Rc2 {[%clk 0:01:38.5]} 17. Qd3 {[%clk 0:01:50.3]} 17... Bf5 {[%clk 0:01:36.9]}
18. Qb3 {[%clk 0:01:44.4]} 18... Rfc8 {[%clk 0:01:36.8]} 19. Rac1 {[%clk
0:01:39.2]} 19... e6 {[%clk 0:01:17]} 20. Rxc2 {[%clk 0:01:28.2]} 20... Bxc2
{[%clk 0:01:17.2]} 21. Qb2 {[%clk 0:01:23.3]} 21... Be4 {[%clk 0:01:00.6]} 22.
Nh2 {[%clk 0:01:00.3]} 22... Rc2 {[%clk 0:00:57]} 23. Rc1 {[%clk 0:00:57.3]}
23... Qc7 {[%clk 0:00:25.7]} 24. Rxc2 {[%clk 0:00:56.5]} 24... Bxc2 {[%clk
0:00:26.6]} 25. Ng4 {[%clk 0:00:53]} 25... Qc4 {[%clk 0:00:25]} 26. Qc3 {[%clk
0:00:44.1]} 26... Qxc3 {[%clk 0:00:23.9]} 27. Bxc3 {[%clk 0:00:45]} 27... h5
{[%clk 0:00:23.4]} 28. Ne3 {[%clk 0:00:41.5]} 28... Bd3 {[%clk 0:00:23.9]} 29.
Nd1 {[%clk 0:00:34.7]} 29... Bh6 {[%clk 0:00:22.5]} 30. Nb2 {[%clk 0:00:33.9]}
30... Be2 {[%clk 0:00:21.8]} 31. Na4 {[%clk 0:00:26.4]} 31... b6 {[%clk
0:00:22]} 32. Bb2 {[%clk 0:00:22.5]} 32... Bd2 {[%clk 0:00:16.6]} 33. Nc3 {[%clk
0:00:19.1]} 33... Bc4 {[%clk 0:00:17.2]} 34. Nb1 {[%clk 0:00:18.1]} 34... Bf4
{[%clk 0:00:15.4]} 35. g3 {[%clk 0:00:18]} 35... Bh6 {[%clk 0:00:15.2]} 36. Kg2
{[%clk 0:00:18.3]} 36... Kf8 {[%clk 0:00:15.5]} 37. Kf3 {[%clk 0:00:18.6]} 37...
Ke7 {[%clk 0:00:15.8]} 38. Nc3 {[%clk 0:00:18.1]} 38... Kd7 {[%clk 0:00:15.2]}
39. Nd1 {[%clk 0:00:17.6]} 39... Kc6 {[%clk 0:00:15.5]} 40. Ne3 {[%clk
0:00:17.6]} 40... Bd3 {[%clk 0:00:13.8]} 41. Bc1 {[%clk 0:00:16.1]} 41... Bf8
{[%clk 0:00:12.9]} 42. Nd1 {[%clk 0:00:15.5]} 42... Kb5 {[%clk 0:00:13]} 43. Nb2
{[%clk 0:00:15.6]} 43... Bf1 {[%clk 0:00:12.4]} 44. Kf4 {[%clk 0:00:15.6]} 44...
Bxh3 {[%clk 0:00:11.8]} 45. Kg5 {[%clk 0:00:16]} 45... a5 {[%clk 0:00:10.5]} 46.
Kf6 {[%clk 0:00:16]} 46... axb4 {[%clk 0:00:10.6]} 47. axb4 {[%clk 0:00:16.3]}
47... Bxb4 {[%clk 0:00:10]} 48. Kxf7 {[%clk 0:00:16.4]} 48... Bf5 {[%clk
0:00:10.3]} 49. f3 {[%clk 0:00:12.7]} 49... Ba3 {[%clk 0:00:07.1]} 50. Nd3
{[%clk 0:00:10.9]} 50... Bxc1 {[%clk 0:00:06]} 51. Nxc1 {[%clk 0:00:10.8]} 51...
Kc4 {[%clk 0:00:06.6]} 52. g4 {[%clk 0:00:10.1]} 52... hxg4 {[%clk 0:00:06.8]}
53. fxg4 {[%clk 0:00:11]} 53... Be4 {[%clk 0:00:06.6]} 54. Kxe6 {[%clk
0:00:10.8]} 54... b5 {[%clk 0:00:06.7]} 55. Kf6 {[%clk 0:00:10.2]} 55... Bf3
{[%clk 0:00:05.5]} 56. Kg5 {[%clk 0:00:07]} 56... b4 {[%clk 0:00:03]} 57. e6
{[%clk 0:00:07.3]} 57... b3 {[%clk 0:00:03.2]} 58. Nxb3 {[%clk 0:00:05.7]} 58...
Kxb3 {[%clk 0:00:03.8]} 59. e7 {[%clk 0:00:06.3]} 59... Be4 {[%clk 0:00:04.7]}
60. e8=Q {[%clk 0:00:06.6]} 60... Kc4 {[%clk 0:00:05.6]} 61. Qe5 {[%clk
0:00:06.9]} 61... Kd3 {[%clk 0:00:05.9]} 62. Kf4 {[%clk 0:00:06.9]} 62... Kc4
{[%clk 0:00:06.5]} 63. Ke3 {[%clk 0:00:07.2]} 63... Kc3 {[%clk 0:00:06.7]} 64.
g5 {[%clk 0:00:07.6]} 64... Kc4 {[%clk 0:00:05.6]} 65. Qxe4 {[%clk 0:00:07.9]}
65... dxe4 {[%clk 0:00:05.9]} 66. Kxe4 {[%clk 0:00:08.8]} 66... Kb5 {[%clk
0:00:06.8]} 67. Ke5 {[%clk 0:00:09.1]} 67... Kc6 {[%clk 0:00:07.7]} 68. Ke6
{[%clk 0:00:09.5]} 68... Kc7 {[%clk 0:00:08]} 69. d5 {[%clk 0:00:09.9]} 69...
Kd8 {[%clk 0:00:08.9]} 70. Kd6 {[%clk 0:00:10.4]} 70... Ke8 {[%clk 0:00:09.8]}
71. Kc7 {[%clk 0:00:10.8]} 71... Kf8 {[%clk 0:00:10.7]} 72. d6 {[%clk
0:00:11.2]} 72... Kg7 {[%clk 0:00:11.6]} 73. d7 {[%clk 0:00:11.8]} 73... Kf7
{[%clk 0:00:12.5]} 74. d8=Q {[%clk 0:00:11.7]} 74... Kg7 {[%clk 0:00:13.4]} 75.
Qf6+ {[%clk 0:00:12.2]} 75... Kg8 {[%clk 0:00:14.3]} 76. Qxg6+ {[%clk 0:00:12]}
76... Kh8 {[%clk 0:00:14.7]} 77. Qh6+ {[%clk 0:00:12.1]} 77... Kg8 {[%clk
0:00:15.3]} 78. Qe6+ {[%clk 0:00:11.7]} 78... Kh8 {[%clk 0:00:16.2]} 79. Qe7
{[%clk 0:00:11.2]} 79... Kg8 {[%clk 0:00:16.6]} 80. Kd6 {[%clk 0:00:11.9]} 80...
Kh8 {[%clk 0:00:17.5]} 81. Ke6 {[%clk 0:00:12.6]} 81... Kg8 {[%clk 0:00:18.4]}
82. Kf6 {[%clk 0:00:13.3]} 82... Kh8 {[%clk 0:00:19.3]} 83. Kg6 {[%clk
0:00:13.7]} 83... Kg8 {[%clk 0:00:20.2]} 84. Qg7# {[%clk 0:00:14.1]} 1-0

[Event "Early-Titled-Tuesday-Blitz-February-20-2024"]
[Site "Chess.com"]
[Date "2024.02.20"]
[Round "2"]
[White "simonachess"]
[Black "JoliyRoger"]
[Result "0-1"]
[WhiteElo "2311"]
[BlackElo "2536"]
[TimeControl "180+1"]
[EndTime "8:19:05 PST"]
[Termination "JoliyRoger won on time"]

1. d4 {[%clk 0:02:57]} 1... Nf6 {[%clk 0:02:59.3]} 2. c4 {[%clk 0:02:57.6]} 2...
e6 {[%clk 0:02:59.8]} 3. Nc3 {[%clk 0:02:57.9]} 3... Bb4 {[%clk 0:03:00.4]} 4.
Qc2 {[%clk 0:02:58.2]} 4... O-O {[%clk 0:02:58.9]} 5. e3 {[%clk 0:02:58.7]} 5...
b6 {[%clk 0:02:58]} 6. Nf3 {[%clk 0:02:59.1]} 6... Bb7 {[%clk 0:02:58.5]} 7. Be2
{[%clk 0:02:59.7]} 7... Ne4 {[%clk 0:02:56.5]} 8. O-O {[%clk 0:02:56]} 8... Bxc3
{[%clk 0:02:54.8]} 9. bxc3 {[%clk 0:02:56.9]} 9... d6 {[%clk 0:02:55.4]} 10. Nd2
{[%clk 0:02:56]} 10... f5 {[%clk 0:02:49.5]} 11. f3 {[%clk 0:02:56]} 11... Nxd2
{[%clk 0:02:49.3]} 12. Bxd2 {[%clk 0:02:56.5]} 12... Nd7 {[%clk 0:02:49.7]} 13.
a4 {[%clk 0:02:50.7]} 13... a5 {[%clk 0:02:48.1]} 14. e4 {[%clk 0:02:36.7]}
14... f4 {[%clk 0:02:36.3]} 15. Qb3 {[%clk 0:02:29]} 15... Kh8 {[%clk
0:02:30.3]} 16. c5 {[%clk 0:02:25.1]} 16... dxc5 {[%clk 0:01:35.2]} 17. Qxe6
{[%clk 0:02:23.6]} 17... cxd4 {[%clk 0:01:35.9]} 18. cxd4 {[%clk 0:02:23.2]}
18... Nc5 {[%clk 0:01:32.1]} 19. Qa2 {[%clk 0:02:11.7]} 19... Qxd4+ {[%clk
0:01:30.5]} 20. Kh1 {[%clk 0:02:12.2]} 20... Rad8 {[%clk 0:01:12.2]} 21. Rfd1
{[%clk 0:02:01.5]} 21... Qf2 {[%clk 0:01:06.4]} 22. Bc3 {[%clk 0:01:40.4]} 22...
Ba6 {[%clk 0:00:47.8]} 23. Qf7 {[%clk 0:01:10.7]} 23... Ne6 {[%clk 0:00:34]} 24.
Rxd8 {[%clk 0:00:54.2]} 24... Rxd8 {[%clk 0:00:33.1]} 25. Bxa6 {[%clk
0:00:51.7]} 25... Qc2 {[%clk 0:00:27.7]} 26. Rg1 {[%clk 0:00:34]} 26... Qxc3
{[%clk 0:00:20.1]} 27. Qxe6 {[%clk 0:00:34.1]} 27... h6 {[%clk 0:00:14.1]} 28.
Bb5 {[%clk 0:00:27.4]} 28... Qd4 {[%clk 0:00:06.3]} 29. h4 {[%clk 0:00:20.4]}
29... Rf8 {[%clk 0:00:04.7]} 30. Be8 {[%clk 0:00:17.4]} 30... Qd8 {[%clk
0:00:04.6]} 31. Bg6 {[%clk 0:00:06.1]} 31... Qxh4+ {[%clk 0:00:05.1]} 32. Qh3
{[%clk 0:00:06.8]} 32... Qg5 {[%clk 0:00:05]} 33. Bf5 {[%clk 0:00:07]} 33... g6
{[%clk 0:00:03.8]} 34. Bg4 {[%clk 0:00:07.5]} 34... h5 {[%clk 0:00:03.6]} 35.
Be6 {[%clk 0:00:07.9]} 35... Rd8 {[%clk 0:00:04.1]} 36. Bd5 {[%clk 0:00:08.4]}
36... c5 {[%clk 0:00:03.6]} 37. Rc1 {[%clk 0:00:04.4]} 37... Qf6 {[%clk
0:00:03.6]} 38. Qe6 {[%clk 0:00:04.7]} 38... Qxe6 {[%clk 0:00:03.5]} 39. Bxe6
{[%clk 0:00:05.6]} 39... Rd4 {[%clk 0:00:03.9]} 40. Bd5 {[%clk 0:00:06.1]} 40...
Rxa4 {[%clk 0:00:04.1]} 41. Rb1 {[%clk 0:00:06.9]} 41... Rb4 {[%clk 0:00:04.7]}
42. Rc1 {[%clk 0:00:07.5]} 42... a4 {[%clk 0:00:04.8]} 43. e5 {[%clk 0:00:08]}
43... Kg7 {[%clk 0:00:04.8]} 44. e6 {[%clk 0:00:08.5]} 44... Kf8 {[%clk
0:00:05.4]} 45. Kh2 {[%clk 0:00:06.8]} 45... b5 {[%clk 0:00:04.2]} 46. Kh3
{[%clk 0:00:07.4]} 46... c4 {[%clk 0:00:04.8]} 47. Kh4 {[%clk 0:00:07.4]} 47...
Ke7 {[%clk 0:00:05.7]} 48. Kg5 {[%clk 0:00:08.1]} 48... Rb2 {[%clk 0:00:06.3]}
49. Kxf4 {[%clk 0:00:08.4]} 49... a3 {[%clk 0:00:05.7]} 50. Ke5 {[%clk
0:00:08.1]} 50... Re2+ {[%clk 0:00:05.2]} 51. Kd4 {[%clk 0:00:08.2]} 51... a2
{[%clk 0:00:05.9]} 52. Ra1 {[%clk 0:00:08.2]} 52... Rxg2 {[%clk 0:00:04.2]} 53.
f4 {[%clk 0:00:07.5]} 53... Rb2 {[%clk 0:00:04.3]} 54. Kc5 {[%clk 0:00:07.2]}
54... c3 {[%clk 0:00:03.3]} 55. Be4 {[%clk 0:00:05.3]} 55... b4 {[%clk
0:00:03.6]} 56. Kc4 {[%clk 0:00:05.2]} 56... c2 {[%clk 0:00:03.1]} 57. Bxc2
{[%clk 0:00:05.6]} 57... Rxc2+ {[%clk 0:00:03.4]} 58. Kxb4 {[%clk 0:00:06.1]}
58... Rf2 {[%clk 0:00:04]} 59. Kc3 {[%clk 0:00:05.4]} 59... Kxe6 {[%clk
0:00:03.6]} 60. Kd3 {[%clk 0:00:06]} 60... Kf5 {[%clk 0:00:03.9]} 61. Ke3 {[%clk
0:00:06.7]} 61... Rb2 {[%clk 0:00:04.4]} 62. Kf3 {[%clk 0:00:07.2]} 62... h4
{[%clk 0:00:04.8]} 63. Ke3 {[%clk 0:00:05.4]} 63... Kg4 {[%clk 0:00:04.5]} 64.
Rg1+ {[%clk 0:00:04.6]} 64... Kh3 {[%clk 0:00:04.9]} 65. Rh1+ {[%clk 0:00:05.2]}
65... Kg2 {[%clk 0:00:05]} 66. Ra1 {[%clk 0:00:05.9]} 66... h3 {[%clk
0:00:05.6]} 0-1

[Event "Early-Titled-Tuesday-Blitz-February-20-2024"]
[Site "Chess.com"]
[Date "2024.02.20"]
[Round "2"]
[White "Durarbayli"]
[Black "NovoselovRoman"]
[Result "1-0"]
[WhiteElo "2969"]
[BlackElo "2538"]
[TimeControl "180+1"]
[EndTime "8:19:12 PST"]
[Termination "Durarbayli won by resignation"]

1. c4 {[%clk 0:03:00.9]} 1... e6 {[%clk 0:02:56]} 2. e4 {[%clk 0:02:59.9]} 2...
d5 {[%clk 0:02:56.1]} 3. exd5 {[%clk 0:03:00.8]} 3... exd5 {[%clk 0:02:57]} 4.
d4 {[%clk 0:03:01.5]} 4... Nf6 {[%clk 0:02:56.9]} 5. Nc3 {[%clk 0:03:01.6]} 5...
Be7 {[%clk 0:02:55]} 6. cxd5 {[%clk 0:02:57]} 6... Nxd5 {[%clk 0:02:55.7]} 7.
Bc4 {[%clk 0:02:57.4]} 7... Nb6 {[%clk 0:02:41.3]} 8. Bb3 {[%clk 0:02:57.1]}
8... O-O {[%clk 0:02:41.5]} 9. Nge2 {[%clk 0:02:55.5]} 9... c6 {[%clk 0:02:39]}
10. O-O {[%clk 0:02:55]} 10... Bf5 {[%clk 0:02:36.2]} 11. Nf4 {[%clk 0:02:51.3]}
11... Na6 {[%clk 0:02:31.2]} 12. Re1 {[%clk 0:02:28]} 12... Nb4 {[%clk 0:02:21]}
13. Re5 {[%clk 0:02:27.1]} 13... Qd7 {[%clk 0:02:08.6]} 14. a3 {[%clk 0:02:21]}
14... Na6 {[%clk 0:01:48.5]} 15. d5 {[%clk 0:01:21.7]} 15... Bf6 {[%clk
0:01:43]} 16. Re1 {[%clk 0:01:20.1]} 16... Bxc3 {[%clk 0:01:33.6]} 17. bxc3
{[%clk 0:01:20.2]} 17... Nc5 {[%clk 0:01:29.8]} 18. dxc6 {[%clk 0:01:08.1]}
18... Qxc6 {[%clk 0:01:27.2]} 19. Bd5 {[%clk 0:01:07.7]} 19... Qc7 {[%clk
0:01:13.5]} 20. c4 {[%clk 0:01:01.8]} 20... Rfe8 {[%clk 0:00:57.6]} 21. Be3
{[%clk 0:00:55]} 21... Ne4 {[%clk 0:00:45.1]} 22. Qd4 {[%clk 0:00:43.7]} 22...
Rad8 {[%clk 0:00:32.4]} 23. Nh5 {[%clk 0:00:37.4]} 23... Qe5 {[%clk 0:00:24.8]}
24. Qxe5 {[%clk 0:00:37.8]} 24... Rxe5 {[%clk 0:00:25.7]} 25. Bxb6 {[%clk
0:00:38.4]} 25... axb6 {[%clk 0:00:24.1]} 26. Ng3 {[%clk 0:00:26]} 26... Rexd5
{[%clk 0:00:08.1]} 27. cxd5 {[%clk 0:00:26.9]} 27... Nxg3 {[%clk 0:00:06.5]} 28.
hxg3 {[%clk 0:00:27.8]} 28... Kf8 {[%clk 0:00:07.4]} 29. Rad1 {[%clk 0:00:22.8]}
29... Rd6 {[%clk 0:00:07.9]} 30. f3 {[%clk 0:00:22.9]} 30... h5 {[%clk
0:00:07.5]} 31. Kf2 {[%clk 0:00:23]} 31... g6 {[%clk 0:00:07.2]} 32. Ke3 {[%clk
0:00:23.2]} 32... Ke7 {[%clk 0:00:07.2]} 33. Kd4+ {[%clk 0:00:22.7]} 33... Kd7
{[%clk 0:00:07.7]} 34. Rd2 {[%clk 0:00:21.1]} 34... Be6 {[%clk 0:00:07.6]} 35.
Ke5 {[%clk 0:00:20.9]} 35... Bf5 {[%clk 0:00:08.1]} 36. Red1 {[%clk 0:00:19.2]}
36... b5 {[%clk 0:00:08.6]} 37. Kd4 {[%clk 0:00:18.4]} 37... Ra6 {[%clk
0:00:08.9]} 38. Kc5 {[%clk 0:00:14]} 38... Rxa3 {[%clk 0:00:09]} 39. Kxb5 {[%clk
0:00:13.4]} 39... Rb3+ {[%clk 0:00:09.4]} 40. Kc5 {[%clk 0:00:13.5]} 40... b6+
{[%clk 0:00:09.2]} 41. Kc4 {[%clk 0:00:13.6]} 41... Ra3 {[%clk 0:00:09.7]} 42.
Rb2 {[%clk 0:00:12.9]} 42... Kc7 {[%clk 0:00:08.3]} 43. d6+ {[%clk 0:00:12.9]}
43... Kc6 {[%clk 0:00:08.6]} 44. Kd4 {[%clk 0:00:11.2]} 44... Be6 {[%clk
0:00:08.7]} 45. Ke5 {[%clk 0:00:10.7]} 45... Re3+ {[%clk 0:00:08.2]} 46. Kf6
{[%clk 0:00:10.5]} 46... b5 {[%clk 0:00:08.8]} 47. Rc2+ {[%clk 0:00:10.2]} 47...
Kd7 {[%clk 0:00:09]} 48. Rc7+ {[%clk 0:00:09.3]} 48... Kd8 {[%clk 0:00:09.6]}
49. Ra1 {[%clk 0:00:09.5]} 49... Bd5 {[%clk 0:00:09]} 50. Raa7 {[%clk 0:00:07]}
50... Re6+ {[%clk 0:00:09.3]} 51. Kg7 {[%clk 0:00:07]} 51... Rxd6 {[%clk
0:00:09.8]} 52. Rc5 {[%clk 0:00:07.2]} 52... Bc4 {[%clk 0:00:07.9]} 53. Rcc7
{[%clk 0:00:05]} 53... Be6 {[%clk 0:00:07.3]} 54. Rcb7 {[%clk 0:00:04.8]} 54...
Kc8 {[%clk 0:00:07.5]} 55. Rxb5 {[%clk 0:00:04.7]} 55... Rd2 {[%clk 0:00:06.9]}
56. g4 {[%clk 0:00:02.9]} 56... hxg4 {[%clk 0:00:07.1]} 57. fxg4 {[%clk
0:00:03.6]} 57... Rxg2 {[%clk 0:00:07.4]} 58. g5 {[%clk 0:00:04.5]} 58... Rf2
{[%clk 0:00:07.1]} 59. Rc5+ {[%clk 0:00:04.9]} 59... Kb8 {[%clk 0:00:07.3]} 60.
Re7 {[%clk 0:00:05.4]} 60... Re2 {[%clk 0:00:07.5]} 61. Ra5 {[%clk 0:00:05.5]}
61... Rc2 {[%clk 0:00:03.6]} 62. Rb5+ {[%clk 0:00:05.2]} 62... Kc8 {[%clk
0:00:03.7]} 63. Kf8 {[%clk 0:00:05.4]} 63... Kd8 {[%clk 0:00:04.1]} 64. Rb8+
{[%clk 0:00:05.2]} 64... Rc8 {[%clk 0:00:04.4]} 65. Re8+ {[%clk 0:00:05.2]}
65... Kc7 {[%clk 0:00:03.7]} 66. Rbxc8+ {[%clk 0:00:05.4]} 66... Bxc8 {[%clk
0:00:04.6]} 67. Kxf7 {[%clk 0:00:06]} 67... Bf5 {[%clk 0:00:05]} 68. Rg8 {[%clk
0:00:05.9]} 68... Kd6 {[%clk 0:00:05]} 69. Rxg6+ {[%clk 0:00:06.4]} 69... Ke5
{[%clk 0:00:04.8]} 70. Rf6 {[%clk 0:00:06.7]} 70... Bd3 {[%clk 0:00:04]} 71. g6
{[%clk 0:00:07.6]} 71... Bc4+ {[%clk 0:00:04.9]} 72. Ke7 {[%clk 0:00:07.1]}
72... Bd5 {[%clk 0:00:05.8]} 73. g7 {[%clk 0:00:07.7]} 73... Bc4 {[%clk
0:00:05.6]} 74. Rf8 {[%clk 0:00:08.1]} 74... Bd5 {[%clk 0:00:05.7]} 75. g8=Q
{[%clk 0:00:09]} 75... Bxg8 {[%clk 0:00:06.5]} 76. Rxg8 {[%clk 0:00:09.9]} 1-0

[Event "Early-Titled-Tuesday-Blitz-February-20-2024"]
[Site "Chess.com"]
[Date "2024.02.20"]
[Round "2"]
[White "vugarrasulov"]
[Black "mortngabriel"]
[Result "1-0"]
[WhiteElo "2925"]
[BlackElo "2526"]
[TimeControl "180+1"]
[EndTime "8:19:14 PST"]
[Termination "vugarrasulov won by resignation"]

1. e4 {[%clk 0:03:00.9]} 1... c5 {[%clk 0:02:59.8]} 2. Nf3 {[%clk 0:02:59.7]}
2... Nc6 {[%clk 0:03:00]} 3. Bc4 {[%clk 0:02:59.2]} 3... d6 {[%clk 0:02:47.5]}
4. O-O {[%clk 0:02:57.7]} 4... Nf6 {[%clk 0:02:47.3]} 5. d3 {[%clk 0:02:56.5]}
5... g6 {[%clk 0:02:45.6]} 6. h3 {[%clk 0:02:53.3]} 6... Bg7 {[%clk 0:02:45.4]}
7. c3 {[%clk 0:02:53.9]} 7... O-O {[%clk 0:02:43.6]} 8. Bb3 {[%clk 0:02:54.2]}
8... b5 {[%clk 0:02:37.3]} 9. Re1 {[%clk 0:02:50.6]} 9... b4 {[%clk 0:02:16.2]}
10. Ba4 {[%clk 0:02:43.1]} 10... Bd7 {[%clk 0:02:14.1]} 11. c4 {[%clk
0:02:37.7]} 11... Ne8 {[%clk 0:02:09.1]} 12. Nbd2 {[%clk 0:02:28.2]} 12... Nc7
{[%clk 0:02:04]} 13. Nf1 {[%clk 0:02:28.3]} 13... Ne6 {[%clk 0:02:02.6]} 14. Rb1
{[%clk 0:02:21.4]} 14... Ncd4 {[%clk 0:02:00.1]} 15. Nxd4 {[%clk 0:02:18.5]}
15... Nxd4 {[%clk 0:01:57.2]} 16. Ng3 {[%clk 0:02:09.8]} 16... a5 {[%clk
0:01:51.9]} 17. Ne2 {[%clk 0:02:07.3]} 17... Bxa4 {[%clk 0:01:45.2]} 18. Qxa4
{[%clk 0:02:05.9]} 18... Qe8 {[%clk 0:01:45]} 19. Qd1 {[%clk 0:01:58.5]} 19...
a4 {[%clk 0:01:39.7]} 20. Be3 {[%clk 0:01:56.7]} 20... Nc6 {[%clk 0:01:33.4]}
21. Qd2 {[%clk 0:01:45.3]} 21... Qd7 {[%clk 0:01:22.6]} 22. Bh6 {[%clk 0:01:43]}
22... Rfb8 {[%clk 0:01:10.1]} 23. Bxg7 {[%clk 0:01:42.9]} 23... Kxg7 {[%clk
0:01:11]} 24. f4 {[%clk 0:01:39.2]} 24... e6 {[%clk 0:01:07.6]} 25. Rf1 {[%clk
0:01:38]} 25... f5 {[%clk 0:01:06.5]} 26. Rbd1 {[%clk 0:01:34]} 26... Rf8 {[%clk
0:01:03]} 27. Kh2 {[%clk 0:01:25.5]} 27... Rae8 {[%clk 0:01:01.3]} 28. Qc2
{[%clk 0:01:22.2]} 28... Qa7 {[%clk 0:00:33.8]} 29. b3 {[%clk 0:01:19.3]} 29...
axb3 {[%clk 0:00:32.9]} 30. axb3 {[%clk 0:01:20.2]} 30... Ra8 {[%clk 0:00:31.7]}
31. Ra1 {[%clk 0:01:18.6]} 31... Qe7 {[%clk 0:00:29]} 32. Ra2 {[%clk 0:00:58.2]}
32... Rxa2 {[%clk 0:00:20]} 33. Qxa2 {[%clk 0:00:59.1]} 33... e5 {[%clk
0:00:16.6]} 34. Qa6 {[%clk 0:00:50.2]} 34... Qd7 {[%clk 0:00:14.2]} 35. exf5
{[%clk 0:00:34.1]} 35... Rxf5 {[%clk 0:00:09.6]} 36. Qb5 {[%clk 0:00:32.6]}
36... exf4 {[%clk 0:00:07.6]} 37. Nxf4 {[%clk 0:00:27.4]} 37... Ne5 {[%clk
0:00:05.3]} 38. Qxd7+ {[%clk 0:00:12]} 38... Nxd7 {[%clk 0:00:06.2]} 39. Kg3
{[%clk 0:00:12.7]} 39... h5 {[%clk 0:00:05]} 40. h4 {[%clk 0:00:12.3]} 40... Ne5
{[%clk 0:00:05]} 41. Ra1 {[%clk 0:00:12.1]} 41... Rf7 {[%clk 0:00:04.5]} 42. Ra6
{[%clk 0:00:12.2]} 42... Rd7 {[%clk 0:00:04.5]} 43. Kf2 {[%clk 0:00:11.6]} 43...
Kf6 {[%clk 0:00:04.6]} 44. Ke3 {[%clk 0:00:12.2]} 44... Kf5 {[%clk 0:00:05]} 45.
Nd5 {[%clk 0:00:11.6]} 45... g5 {[%clk 0:00:03.9]} 46. hxg5 {[%clk 0:00:10.6]}
46... Kxg5 {[%clk 0:00:04.4]} 47. Ke4 {[%clk 0:00:11.1]} 47... h4 {[%clk
0:00:03.8]} 48. Ra8 {[%clk 0:00:10.5]} 48... Rf7 {[%clk 0:00:02.8]} 49. Rg8+
{[%clk 0:00:10.3]} 49... Ng6 {[%clk 0:00:02]} 50. Ne3 {[%clk 0:00:07.4]} 50...
Re7+ {[%clk 0:00:02.1]} 51. Kf3 {[%clk 0:00:07.2]} 51... Kh5 {[%clk 0:00:02.6]}
52. Nf5 {[%clk 0:00:06.5]} 52... Rf7 {[%clk 0:00:03]} 53. Ke4 {[%clk 0:00:07.2]}
53... Ne5 {[%clk 0:00:02.7]} 54. g3 {[%clk 0:00:05]} 54... hxg3 {[%clk
0:00:02.3]} 55. Nxg3+ {[%clk 0:00:05.9]} 55... Kh6 {[%clk 0:00:02.8]} 56. Nf5+
{[%clk 0:00:06.8]} 56... Kh7 {[%clk 0:00:03.7]} 57. Rg5 {[%clk 0:00:06.3]} 57...
Ng6 {[%clk 0:00:03.7]} 58. Nxd6 {[%clk 0:00:05.4]} 58... Re7+ {[%clk 0:00:04]}
59. Kd5 {[%clk 0:00:05.5]} 59... Nf4+ {[%clk 0:00:04.4]} 60. Kxc5 {[%clk
0:00:06.2]} 60... Nxd3+ {[%clk 0:00:04.9]} 61. Kc6 {[%clk 0:00:06.6]} 61... Re6
{[%clk 0:00:05]} 62. c5 {[%clk 0:00:06.3]} 62... Nf4 {[%clk 0:00:04.1]} 63. Kd7
{[%clk 0:00:06.3]} 63... Rf6 {[%clk 0:00:04.1]} 64. c6 {[%clk 0:00:06.1]} 64...
Ne6 {[%clk 0:00:04.8]} 65. Rh5+ {[%clk 0:00:05.5]} 65... Kg6 {[%clk 0:00:04.8]}
66. Re5 {[%clk 0:00:05.9]} 66... Nf8+ {[%clk 0:00:04.6]} 67. Ke7 {[%clk
0:00:06.6]} 67... Rf3 {[%clk 0:00:04]} 68. c7 {[%clk 0:00:06.1]} 68... Rc3
{[%clk 0:00:03.6]} 69. c8=Q {[%clk 0:00:06.2]} 69... Rxc8 {[%clk 0:00:03.6]} 70.
Nxc8 {[%clk 0:00:07.1]} 1-0